lending/lending_fUSD_20250913
["ID","MTS","AMOUNT","RATE_DAILY","PERIOD"]
[385375957,1757798952182,-163.73,0.00020239,2]
[385375958,1757798952203,-2000.0,0.00020506,3]
[385375959,1757798952223,-524.83875846,0.0002085,2]
[385375964,1757799031979,-310.46841889,0.0002085,2]
[385375965,1757799031992,-491.44916928,0.0002085,2]
[385375966,1757799032003,-1084.68879998,0.0002085,2]
[385375967,1757799032014,-367.04062426,0.0002085,2]
[385375968,1757799032023,-3.57147574,0.00020875,3]
[385375973,1757799037624,-656.60223961,0.00020875,3]
[385375974,1757799037636,-1339.82628465,0.00020875,3]
[385375975,1757799037646,-225.74131211,0.000209,2]
[385375976,1757799037654,-163.73,0.00020962,2]
[385375977,1757799037663,-208.08655816,0.00021332,3]
[385376196,1757799039733,-1791.91344184,0.00021332,3]
[385376198,1757799039742,-163.73,0.00021685,2]
[385376200,1757799039751,-1235.37911941,0.00022263,2]
[385376203,1757799039763,-1264.62088059,0.00022263,2]
[385376205,1757799039772,-300.0,0.00022263,2]
[385376207,1757799039781,-2000.0,0.00022263,3]
[385376209,1757799039790,-2000.0,0.00022263,3]
[385376211,1757799039799,-163.73,0.00022408,2]
[385376213,1757799039808,-2000.0,0.00022935,3]
[385376215,1757799039817,-163.73,0.0002313,2]
[385376217,1757799039827,-163.73,0.00023853,2]
[385376219,1757799039836,-5000.00604155,0.00024,5]
[385376221,1757799039845,-163.73,0.00024576,2]
[385376223,1757799039855,-4941.52703372,0.000249,2]
[385376225,1757799039863,-500.0,0.00024932,2]
[385376227,1757799039873,-163.73,0.00025299,2]
[385376229,1757799039882,-163.73,0.00026022,2]
[385376231,1757799039891,-250.0,0.00026315,2]
[385376233,1757799039900,-1831.81,0.00026355,2]
[385376235,1757799039909,-596.88,0.00026382,2]
[385376237,1757799039918,-163.73,0.00026745,2]
[385376238,1757799039928,-150.0,0.00026749,7]
[385376240,1757799039937,-4273.51936192,0.00026789,2]
[385376243,1757799039948,-2414.55917769,0.00026789,2]
[385376520,1757799043035,-4482.79450909,0.00026789,2]
[385376697,1757799155314,1882.92693077,0.00030137,120]
[385376698,1757799203621,2000.0,0.00024658,15]
[385376699,1757799428333,200.0,0.00030136,120]
[385376700,1757799567982,28940.90312174,0.0003,24]
[385376701,1757799688722,153.21,0.00027425,30]
[385376702,1757799716875,1500.0,0.00026591,120]
[385376703,1757799802982,2000.0,0.00024658,15]
[385376704,1757800000129,-150.0,0.00020497,2]
[385376705,1757800000148,-15.62169422,0.00021354,2]
[385376706,1757800054518,1033.42,0.00026001,120]
[385376707,1757800054741,1033.42,0.00029251,120]
[385376718,1757800231954,-662.88,0.00021336,2]
[385376719,1757800231963,-857.15585947,0.00021444,2]
[385376720,1757800231972,-2000.0,0.00021544,3]
[385376721,1757800231981,-1200.0,0.00021838,2]
[385376722,1757800231991,-2000.0,0.00021839,3]
[385376723,1757800232001,-2000.0,0.00021839,3]
[385376724,1757800232010,-2000.0,0.00021839,3]
[385376725,1757800232019,-189.6971427,0.00021841,2]
[385376726,1757800232028,-484.7686,0.00022051,2]
[385376727,1757800232037,-251.0,0.00022547,2]
[385376728,1757800232046,-2000.0,0.00023372,3]
[385376729,1757800232055,-300.0,0.00023489,2]
[385376730,1757800232065,-2124.10607264,0.00023981,2]
[385376731,1757800232075,-515.60081738,0.00024025,3]
[385376732,1757800232084,-160.0,0.00024025,3]
[385376733,1757800232093,-3672.01495101,0.000249,2]
[385376734,1757800232104,-265.7511,0.000249,2]
[385376735,1757800232115,-843.69603868,0.000249,2]
[385376736,1757800232124,-4.17730087,0.00024932,2]
[385376737,1757800232135,-287.44003504,0.00024932,2]
[385376738,1757800232151,-208.38266409,0.00024932,2]
[385376739,1757800232160,-291.61733591,0.00025364,2]
[385376740,1757800232174,-208.38266409,0.00025364,2]
[385376741,1757800232183,-2283.55441414,0.00025379,2]
[385376742,1757800232194,-370.76858744,0.00025379,2]
[385376743,1757800232205,-2873.45462226,0.00025379,2]
[385376744,1757800232216,-17301.05014726,0.00025379,2]
[385376745,1757800232225,-1143.6603824,0.00025379,2]
[385376746,1757800232234,-500.0,0.00025712,2]
[385376747,1757800232244,-500.0,0.00025712,2]
[385376748,1757800232254,-500.0,0.00025712,2]
[385376749,1757800232263,-500.0,0.00025712,2]
[385376750,1757800232272,-500.0,0.00025712,2]
[385376751,1757800232281,-500.0,0.00025712,2]
[385376752,1757800232290,-516.00090342,0.00025712,2]
[385376753,1757800232300,-5000.0,0.00025713,2]
[385376754,1757800232309,-5000.0,0.00025713,2]
[385376755,1757800232319,-5000.0,0.00025713,2]
[385376756,1757800232328,-5000.0,0.00025713,2]
[385376757,1757800232338,-666.0,0.00025927,3]
[385376759,1757800232347,-5994.69746007,0.0002629,2]
[385376761,1757800232356,-76008.28386754,0.00026291,2]
[385376762,1757800232366,-76008.28386754,0.00026295,2]
[385376763,1757800232375,-76008.28386754,0.000263,2]
[385376764,1757800232384,-4523.12565362,0.000263,2]
[385376765,1757800232393,-30454.63049694,0.00026307,2]
[385376766,1757800232403,-416.25949015,0.00026307,2]
[385376767,1757800232412,-4523.12565362,0.00026321,2]
[385376769,1757800232421,-4523.12565362,0.00026328,2]
[385376772,1757800232430,-4523.12565362,0.00026328,2]
[385376775,1757800232439,-416.25949015,0.00026329,2]
[385376777,1757800232448,-4523.12565362,0.00026331,2]
[385376780,1757800232457,-5994.69746007,0.00026337,2]
[385376783,1757800232466,-8897.29011789,0.00026337,2]
[385376786,1757800232475,-8897.29011789,0.00026341,2]
[385376789,1757800232485,-76008.28386754,0.00026341,2]
[385376792,1757800232494,-5994.69746007,0.00026349,2]
[385376795,1757800232503,-30454.63049694,0.00026358,2]
[385376797,1757800232512,-76008.28386754,0.00026364,2]
[385376800,1757800232522,-416.25949015,0.00026369,2]
[385376803,1757800232531,-416.25949015,0.00026372,2]
[385376806,1757800232540,-30454.63049694,0.00026375,2]
[385376809,1757800232549,-416.25949015,0.00026392,2]
[385376812,1757800232559,-8897.29011789,0.00026394,2]
[385376815,1757800232568,-5994.69746007,0.00026396,2]
[385376817,1757800232577,-8897.29011789,0.00026396,2]
[385376819,1757800232586,-30454.63049694,0.0002641,2]
[385376821,1757800232595,-416.25949015,0.00026418,2]
[385376823,1757800232604,-5994.69746007,0.00026421,2]
[385376825,1757800232613,-8897.29011789,0.00026425,2]
[385376827,1757800232623,-5994.69746007,0.00026425,2]
[385376829,1757800232632,-8897.29011789,0.00026429,2]
[385376830,1757800232641,-416.25949015,0.0002644,2]
[385376832,1757800232650,-76008.28386754,0.00026446,2]
[385376834,1757800232660,-4523.12565362,0.0002645,2]
[385376836,1757800232669,-4523.12565362,0.00026462,2]
[385376838,1757800232678,-8897.29011789,0.00026468,2]
[385376840,1757800232688,-30454.63049694,0.00026476,2]
[385376842,1757800232699,-5994.69746007,0.00026479,2]
[385376844,1757800232708,-30454.63049694,0.00026479,2]
[385376846,1757800232718,-76008.28386754,0.00026481,2]
[385376847,1757800232728,-30454.63049694,0.00026498,2]
[385376849,1757800232736,-150.0,0.00026588,7]
[385376851,1757800232746,-250.0,0.00026766,2]
[385376853,1757800232755,-277.35679052,0.00026967,2]
[385376855,1757800232764,-721.12765535,0.00026967,2]
[385376857,1757800232775,-250.0,0.00026967,2]
[385376859,1757800232784,-250.0,0.00026967,2]
[385376860,1757800232794,-250.0,0.00026967,2]
[385376862,1757800232803,-250.0,0.00026967,2]
[385376864,1757800232812,-250.0,0.00026967,2]
[385376866,1757800232821,-250.0,0.00026967,2]
[385376868,1757800232830,-365.75929531,0.00026967,2]
[385376870,1757800232839,-1000.0,0.00026967,2]
[385376871,1757800232847,-1000.0,0.00026967,2]
[385376873,1757800232858,-1000.0,0.00026967,2]
[385376875,1757800232867,-1000.0,0.00026967,2]
[385376877,1757800232875,-1000.0,0.00026967,2]
[385376879,1757800232884,-406.27219911,0.00026967,2]
[385376881,1757800232893,-500.0,0.00026967,2]
[385376882,1757800232902,-6726.6421306,0.00026999,2]
[385376884,1757800232911,-30161.11082332,0.00026999,2]
[385376886,1757800232924,-9459.78146494,0.00026999,2]
[385376888,1757800232933,-500.0,0.00027,2]
[385376890,1757800232942,-500.0,0.00027,2]
[385376892,1757800232951,-500.0,0.00027,2]
[385376894,1757800232960,-500.0,0.00027,2]
[385376896,1757800232969,-501.80751593,0.00027,2]
[385376898,1757800232979,-238.13,0.00027397,2]
[385376899,1757800232988,-163.73,0.00027467,2]
[385376901,1757800232997,-1000.0,0.00027548,5]
[385376903,1757800233007,-852.20461904,0.00027816,2]
[385376925,1757800233247,-500.55625791,0.00028,3]
[385376926,1757800233257,-11797.93261226,0.00028,2]
[385376927,1757800233267,-515.60081738,0.00028,10]
[385376928,1757800233277,-500.0,0.00028,5]
[385376929,1757800233286,-500.0,0.00028,2]
[385376930,1757800233295,-1500.0,0.00028096,5]
[385376931,1757800233305,-287.61899177,0.00028336,2]
[385376932,1757800233315,-413.502,0.0002834,19]
[385376933,1757800233324,-182.914,0.0002834,19]
[385376934,1757800233334,-150.0,0.00028355,2]
[385376935,1757800233343,-2925.43336683,0.000284,2]
[385376936,1757800233353,-5150.48041616,0.00028495,2]
[385376937,1757800233362,-161.0253,0.00028495,2]
[385376938,1757800233372,-2117.6715,0.00028495,2]
[385376939,1757800233381,-200.0,0.00028536,2]
[385376940,1757800233390,-150.0,0.00028536,2]
[385376941,1757800233399,-150.0,0.00028536,2]
[385376942,1757800233408,-200.0,0.00028536,2]
[385376943,1757800233418,-150.0,0.00028536,2]
[385376944,1757800233427,-150.0,0.00028536,2]
[385376945,1757800233436,-150.0,0.00028536,2]
[385376946,1757800233445,-200.0,0.00028536,2]
[385376947,1757800233454,-500.0,0.00028536,2]
[385376948,1757800233463,-182.0,0.00028536,2]
[385376949,1757800233472,-456.32921137,0.00028536,2]
[385376950,1757800233481,-198.31901306,0.00028536,2]
[385376951,1757800233491,-165.61150286,0.00028536,2]
[385376952,1757800233500,-3059.0,0.00028537,2]
[385376953,1757800233510,-2038.0,0.00028537,2]
[385376954,1757800233519,-887.0,0.00028537,2]
[385376955,1757800233528,-3388.0,0.00028537,2]
[385376956,1757800233538,-1260.0,0.00028537,2]
[385376957,1757800233547,-1579.0,0.00028537,2]
[385376958,1757800233557,-568.0,0.00028537,2]
[385376959,1757800233566,-601.0,0.00028537,2]
[385376960,1757800233576,-1302.0,0.00028537,2]
[385376961,1757800233585,-897.0,0.00028537,2]
[385376962,1757800233595,-1177.0,0.00028537,2]
[385376963,1757800233604,-812.0,0.00028537,2]
[385376964,1757800233613,-6941.94028866,0.00028537,2]
[385376965,1757800233625,-11911.05971134,0.00028537,2]
[385376966,1757800233634,-6173.0,0.00028537,2]
[385376967,1757800233644,-4168.0,0.00028537,2]
[385376968,1757800233653,-726.0,0.00028537,2]
[385376969,1757800233662,-164.7719561,0.00028548,5]
[385376970,1757800233672,-500.0,0.00028548,2]
[385376971,1757800233681,-400.0,0.00028603,2]
[385376972,1757800233691,-400.0,0.00028603,2]
[385376973,1757800233704,-400.0,0.00028603,2]
[385376974,1757800233713,-2000.0,0.00028644,5]
[385376975,1757800233723,-2500.0,0.00028746,2]
[385376976,1757800233733,-181.565676,0.0002875,3]
[385376977,1757800233745,-150.0,0.0002881,2]
[385376978,1757800233755,-150.0,0.0002881,2]
[385376979,1757800233764,-150.0,0.0002881,2]
[385376980,1757800233775,-150.0,0.0002881,2]
[385376981,1757800233785,-257.0,0.0002881,2]
[385376982,1757800233795,-500.0,0.0002881,2]
[385376983,1757800233804,-400.0,0.00028845,2]
[385376984,1757800233814,-626.88,0.00028845,2]
[385376985,1757800233823,-706.69,0.00028845,2]
[385376986,1757800233833,-400.0,0.00028845,2]
[385376987,1757800233842,-400.0,0.00028845,2]
[385376988,1757800233852,-400.0,0.00028845,2]
[385376989,1757800233862,-400.0,0.00028845,2]
[385376990,1757800233871,-400.0,0.00028846,2]
[385376991,1757800233881,-400.0,0.00028846,2]
[385376992,1757800233891,-400.0,0.00028846,2]
[385376993,1757800233901,-400.0,0.00028846,2]
[385376994,1757800233911,-400.0,0.00028846,2]
[385376995,1757800233921,-400.0,0.00028846,2]
[385376996,1757800233930,-400.0,0.00028846,2]
[385376997,1757800233939,-400.0,0.00028846,2]
[385376998,1757800233950,-512.11,0.00028846,2]
[385376999,1757800233960,-492.17,0.00028846,2]
[385377000,1757800233969,-403.76315809,0.00028846,2]
[385377001,1757800233979,-400.0,0.00028846,2]
[385377002,1757800233988,-400.0,0.00028846,2]
[385377003,1757800233997,-400.0,0.00028846,2]
[385377004,1757800234007,-400.0,0.00028846,2]
[385377005,1757800234016,-400.0,0.00028846,2]
[385377006,1757800234025,-500.0,0.00028846,2]
[385377007,1757800234035,-965.27,0.00028846,2]
[385377008,1757800234044,-591.15,0.00028846,2]
[385377009,1757800234054,-400.0,0.00028846,2]
[385377010,1757800234063,-400.0,0.00028846,2]
[385377011,1757800234072,-524.58,0.00028846,2]
[385377012,1757800234082,-654.6,0.00028846,2]
[385377013,1757800234091,-402.67,0.00028846,2]
[385377014,1757800234101,-819.52,0.00028846,2]
[385377015,1757800234110,-400.0,0.00028846,2]
[385377016,1757800234119,-400.0,0.00028846,2]
[385377017,1757800234129,-701.13,0.00028846,2]
[385377018,1757800234138,-500.0,0.00028846,2]
[385377019,1757800234148,-400.0,0.00028846,2]
[385377020,1757800234157,-435.6,0.00028846,2]
[385377021,1757800234167,-989.98,0.00028846,2]
[385377022,1757800234176,-400.0,0.00028846,2]
[385377023,1757800234185,-400.0,0.00028846,2]
[385377024,1757800234195,-485.67,0.00028846,2]
[385377025,1757800234204,-400.0,0.00028846,2]
[385377026,1757800234213,-400.0,0.00028846,2]
[385377027,1757800234222,-519.81,0.00028846,2]
[385377028,1757800234231,-400.0,0.00028846,2]
[385377029,1757800234241,-400.0,0.00028846,2]
[385377030,1757800234251,-421.98,0.00028846,2]
[385377031,1757800234260,-400.0,0.00028846,2]
[385377032,1757800234270,-400.0,0.00028846,2]
[385377033,1757800234279,-751.53,0.00028846,2]
[385377034,1757800234288,-408.21,0.00028846,2]
[385377035,1757800234297,-1183.3,0.00028846,2]
[385377036,1757800234306,-981.47,0.00028846,2]
[385377037,1757800234315,-211.36724926,0.00028846,2]
[385377038,1757800234324,-400.0,0.00028846,2]
[385377039,1757800234334,-400.0,0.00028846,2]
[385377040,1757800234343,-400.0,0.00028846,2]
[385377041,1757800234352,-400.0,0.00028846,2]
[385377042,1757800234362,-745.5,0.00028846,2]
[385377043,1757800234371,-400.0,0.00028846,2]
[385377044,1757800234380,-400.0,0.00028846,2]
[385377045,1757800234389,-582.14,0.00028846,2]
[385377046,1757800234399,-400.0,0.00028846,2]
[385377047,1757800234410,-400.0,0.00028846,2]
[385377048,1757800234419,-400.0,0.00028846,2]
[385377049,1757800234428,-400.0,0.00028846,2]
[385377050,1757800234438,-482.13,0.00028846,2]
[385377051,1757800234448,-400.0,0.00028846,2]
[385377052,1757800234457,-400.0,0.00028846,2]
[385377053,1757800234467,-400.0,0.00028846,2]
[385377054,1757800234475,-400.0,0.00028846,2]
[385377055,1757800234485,-400.0,0.00028846,2]
[385377056,1757800234493,-150.14973708,0.00028846,2]
[385377057,1757800234503,-400.0,0.00028846,2]
[385377058,1757800234512,-639.26,0.00028846,2]
[385377059,1757800234521,-400.0,0.00028846,2]
[385377060,1757800234530,-400.0,0.00028846,2]
[385377061,1757800234540,-400.0,0.00028846,2]
[385377062,1757800234549,-837.45,0.00028846,2]
[385377063,1757800234558,-519.58,0.00028846,2]
[385377064,1757800234568,-400.0,0.00028846,2]
[385377065,1757800234577,-318.69929024,0.00028846,2]
[385377066,1757800234587,-400.0,0.00028846,2]
[385377067,1757800234596,-659.25,0.00028846,2]
[385377068,1757800234605,-405.33353059,0.00028846,2]
[385377069,1757800234614,-400.0,0.00028846,2]
[385377070,1757800234624,-152.0,0.0002886,3]
[385377071,1757800234634,-152.0,0.0002886,3]
[385377072,1757800234643,-152.0,0.0002886,3]
[385377073,1757800234653,-152.0,0.0002886,3]
[385377074,1757800234662,-152.0,0.0002886,3]
[385377075,1757800234672,-152.0,0.0002886,3]
[385377076,1757800234681,-152.0,0.0002886,3]
[385377077,1757800234690,-251.01084575,0.0002886,3]
[385377078,1757800234703,-315.83,0.00028865,2]
[385377079,1757800234713,-500.0,0.00028868,2]
[385377080,1757800234722,-400.0,0.00028868,2]
[385377081,1757800234731,-965.92,0.00028868,2]
[385377082,1757800234741,-685.04,0.00028868,2]
[385377083,1757800234751,-400.0,0.00028868,2]
[385377084,1757800234760,-151.0,0.00028869,7]
[385377085,1757800234770,-151.0,0.00028869,7]
[385377086,1757800234779,-400.0,0.00028872,2]
[385377087,1757800234788,-400.0,0.00028872,2]
[385377088,1757800234798,-400.0,0.00028872,2]
[385377089,1757800234807,-400.0,0.00028872,2]
[385377090,1757800234816,-400.0,0.00028872,2]
[385377091,1757800234824,-400.0,0.00028872,2]
[385377092,1757800234834,-400.0,0.00028872,2]
[385377093,1757800234843,-453.49,0.00028872,2]
[385377094,1757800234853,-1222.31,0.00028872,2]
[385377095,1757800234862,-400.0,0.00028872,2]
[385377096,1757800234871,-400.0,0.00028872,2]
[385377097,1757800234882,-400.0,0.00028872,2]
[385377098,1757800234891,-400.0,0.00028872,2]
[385377099,1757800234901,-400.0,0.00028872,2]
[385377100,1757800234911,-694.71,0.00028872,2]
[385377101,1757800234920,-400.0,0.00028872,2]
[385377102,1757800234930,-400.0,0.00028872,2]
[385377103,1757800234939,-400.0,0.00028872,2]
[385377104,1757800234948,-400.0,0.00028872,2]
[385377105,1757800234957,-813.29,0.00028872,2]
[385377106,1757800234966,-269.76414831,0.00028872,2]
[385377107,1757800234975,-400.0,0.00028872,2]
[385377108,1757800234984,-500.0,0.00028873,3]
[385377109,1757800234995,-354.80834425,0.00028873,5]
[385377110,1757800235004,-500.0,0.00028873,5]
[385377111,1757800235014,-500.0,0.00028873,5]
[385377112,1757800235024,-500.0,0.00028873,5]
[385377113,1757800235034,-500.0,0.00028873,5]
[385377114,1757800235044,-405.6224064,0.00028873,5]
[385377115,1757800235055,-500.0,0.00028873,5]
[385377116,1757800235065,-500.0,0.00028873,2]
[385377117,1757800235074,-500.0,0.00028873,5]
[385377118,1757800235083,-500.0,0.00028873,5]
[385377119,1757800235093,-500.0,0.00028873,5]
[385377120,1757800235102,-151.0,0.00028873,7]
[385377121,1757800235111,-151.0,0.00028873,7]
[385377122,1757800235119,-1644.61,0.00028875,2]
[385377123,1757800235129,-532.22,0.00028875,2]
[385377124,1757800235138,-1127.59,0.00028875,2]
[385377125,1757800235147,-400.0,0.00028875,2]
[385377126,1757800235157,-400.0,0.00028875,2]
[385377127,1757800235166,-618.35,0.00028875,2]
[385377128,1757800235175,-500.0,0.00028875,2]
[385377129,1757800235184,-400.0,0.00028875,2]
[385377130,1757800235193,-939.74,0.00028875,2]
[385377131,1757800235202,-400.0,0.00028875,2]
[385377132,1757800235211,-400.0,0.00028876,2]
[385377133,1757800235220,-520.04,0.00028876,2]
[385377134,1757800235230,-955.08,0.00028876,2]
[385377135,1757800235239,-562.19,0.00028876,2]
[385377136,1757800235248,-743.35,0.00028876,2]
[385377137,1757800235258,-400.0,0.00028876,2]
[385377138,1757800235267,-2091.25,0.00028876,2]
[385377139,1757800235276,-400.0,0.00028876,2]
[385377140,1757800235285,-400.0,0.00028876,2]
[385377141,1757800235294,-895.71,0.00028876,2]
[385377142,1757800235303,-773.55,0.00028876,2]
[385377143,1757800235311,-400.0,0.00028876,2]
[385377144,1757800235320,-850.9,0.00028876,2]
[385377145,1757800235330,-709.55,0.00028876,2]
[385377146,1757800235339,-400.0,0.00028876,2]
[385377147,1757800235348,-519.55,0.00028876,2]
[385377148,1757800235357,-680.32,0.00028876,2]
[385377149,1757800235366,-400.0,0.00028876,2]
[385377150,1757800235375,-400.0,0.00028876,2]
[385377151,1757800235384,-400.0,0.00028877,2]
[385377152,1757800235392,-400.0,0.00028877,2]
[385377153,1757800235402,-400.0,0.00028877,2]
[385377154,1757800235411,-300.0,0.000289,10]
[385377155,1757800235420,-5000.0,0.00028914,2]
[385377156,1757800235431,-608.626332,0.00028914,7]
[385377157,1757800235450,-608.626332,0.00028914,7]
[385377158,1757800235460,-608.626332,0.00028914,7]
[385377159,1757800235471,-608.626332,0.00028914,7]
[385377160,1757800235480,-151.0,0.00028914,7]
[385377161,1757800235491,-151.0,0.00028914,7]
[385377162,1757800235501,-151.0,0.00028914,7]
[385377163,1757800235510,-151.0,0.00028914,7]
[385377164,1757800235520,-151.0,0.00028914,7]
[385377165,1757800235530,-224.351056,0.00028914,7]
[385377166,1757800235539,-151.0,0.00029,7]
[385377167,1757800235548,-160.0,0.00029,10]
[385377168,1757800235557,-15560.8102137,0.00029003,3]
[385377169,1757800235567,-11512.5098925,0.00029013,2]
[385377170,1757800235576,-500.0,0.00029014,2]
[385377171,1757800235585,-500.0,0.00029014,2]
[385377172,1757800235594,-897.879,0.0002902,2]
[385377173,1757800235604,-400.0,0.00029071,2]
[385377174,1757800235612,-400.0,0.00029071,2]
[385377175,1757800235622,-400.0,0.00029071,2]
[385377176,1757800235632,-806.19,0.00029071,2]
[385377177,1757800235643,-461.48,0.00029071,2]
[385377178,1757800235652,-870.83,0.00029071,2]
[385377179,1757800235663,-1182.39,0.00029071,2]
[385377180,1757800235673,-400.0,0.00029071,2]
[385377181,1757800235682,-515.09,0.00029071,2]
[385377182,1757800235691,-483.37,0.00029071,2]
[385377183,1757800235705,-400.0,0.00029071,2]
[385377184,1757800235714,-400.0,0.00029071,2]
[385377185,1757800235723,-400.0,0.00029071,2]
[385377186,1757800235733,-400.0,0.00029071,2]
[385377187,1757800235744,-1248.24,0.00029071,2]
[385377188,1757800235753,-400.0,0.00029071,2]
[385377189,1757800235762,-905.24,0.00029071,2]
[385377190,1757800235771,-500.0,0.00029071,2]
[385377191,1757800235781,-449.83,0.00029071,2]
[385377192,1757800235790,-1273.0,0.00029071,2]
[385377193,1757800235799,-400.0,0.00029071,2]
[385377194,1757800235808,-400.0,0.00029071,2]
[385377195,1757800235817,-150.0,0.00029084,2]
[385377196,1757800235826,-150.0,0.00029084,2]
[385377197,1757800235835,-150.0,0.00029084,2]
[385377198,1757800235844,-251.98658705,0.00029084,2]
[385377199,1757800235854,-500.0,0.00029084,2]
[385377200,1757800235864,-575.96,0.000291,7]
[385377201,1757800235874,-151.0,0.000291,7]
[385377202,1757800235883,-515.60081738,0.0002911,3]
[385377203,1757800235894,-11676.11755068,0.0002911,3]
[385377204,1757800236078,-3884.69266302,0.0002911,3]
[385377205,1757800236087,-608.626332,0.00029113,7]
[385377206,1757800236096,-608.626332,0.00029113,7]
[385377207,1757800236106,-608.626332,0.00029113,7]
[385377208,1757800236115,-608.626332,0.00029113,7]
[385377209,1757800236123,-400.0,0.00029119,2]
[385377210,1757800236132,-626.88,0.00029119,2]
[385377211,1757800236142,-706.69,0.00029119,2]
[385377212,1757800236153,-400.0,0.00029119,2]
[385377213,1757800236162,-400.0,0.00029119,2]
[385377214,1757800236171,-400.0,0.00029119,2]
[385377215,1757800236180,-400.0,0.00029119,2]
[385377216,1757800236189,-400.0,0.0002912,2]
[385377217,1757800236198,-400.0,0.0002912,2]
[385377218,1757800236207,-421.28101938,0.0002912,2]
[385377219,1757800236216,-400.0,0.0002912,2]
[385377220,1757800236226,-400.0,0.0002912,2]
[385377221,1757800236235,-362.33517865,0.0002912,2]
[385377222,1757800236245,-521.55657523,0.0002912,2]
[385377223,1757800236254,-400.0,0.0002912,2]
[385377224,1757800236263,-512.11,0.0002912,2]
[385377225,1757800236272,-492.17,0.0002912,2]
[385377226,1757800236281,-400.0,0.0002912,2]
[385377227,1757800236290,-400.0,0.0002912,2]
[385377228,1757800236299,-400.0,0.0002912,2]
[385377229,1757800236308,-400.0,0.0002912,2]
[385377230,1757800236318,-400.0,0.0002912,2]
[385377231,1757800236327,-965.27,0.0002912,2]
[385377232,1757800236336,-591.15,0.0002912,2]
[385377233,1757800236347,-400.0,0.0002912,2]
[385377234,1757800236356,-400.0,0.0002912,2]
[385377235,1757800236365,-524.58,0.0002912,2]
[385377236,1757800236374,-654.6,0.0002912,2]
[385377237,1757800236383,-402.67,0.0002912,2]
[385377238,1757800236393,-819.52,0.0002912,2]
[385377239,1757800236403,-400.0,0.0002912,2]
[385377240,1757800236412,-400.0,0.0002912,2]
[385377241,1757800236422,-701.13,0.0002912,2]
[385377242,1757800236431,-400.0,0.0002912,2]
[385377243,1757800236440,-435.6,0.0002912,2]
[385377244,1757800236449,-989.98,0.0002912,2]
[385377245,1757800236458,-400.0,0.0002912,2]
[385377246,1757800236467,-400.0,0.0002912,2]
[385377247,1757800236477,-485.67,0.0002912,2]
[385377248,1757800236486,-400.0,0.0002912,2]
[385377249,1757800236495,-400.0,0.0002912,2]
[385377250,1757800236504,-519.81,0.0002912,2]
[385377251,1757800236514,-400.0,0.0002912,2]
[385377252,1757800236523,-400.0,0.0002912,2]
[385377253,1757800236533,-421.98,0.0002912,2]
[385377254,1757800236542,-400.0,0.0002912,2]
[385377255,1757800236551,-751.53,0.0002912,2]
[385377256,1757800236560,-408.21,0.0002912,2]
[385377257,1757800236569,-1183.3,0.0002912,2]
[385377258,1757800236578,-981.47,0.0002912,2]
[385377259,1757800236588,-400.0,0.0002912,2]
[385377260,1757800236597,-400.0,0.0002912,2]
[385377261,1757800236606,-400.0,0.0002912,2]
[385377262,1757800236615,-400.0,0.0002912,2]
[385377263,1757800236625,-745.5,0.0002912,2]